fUST/lending_fUST_20250709
["ID","MTS","AMOUNT","RATE_DAILY","PERIOD"]
[370391955,1751992243943,-1434.78,0.00020547,2]
[370391956,1751992243953,-1457.81,0.00020547,2]
[370391957,1751992243963,-481.16,0.00020547,2]
[370391958,1751992243975,-1784.73,0.00020547,2]
[370391959,1751992243985,-460.0,0.00020547,2]
[370391960,1751992243995,-587.43,0.00020547,2]
[370391961,1751992244005,-460.0,0.00020547,2]
[370391962,1751992244015,-460.0,0.00020547,2]
[370391963,1751992244025,-2716.87,0.00020547,2]
[370391964,1751992244034,-549.3,0.00020547,2]
[370391965,1751992244044,-460.0,0.00020547,2]
[370391966,1751992244054,-629.94,0.00020547,2]
[370391967,1751992244065,-461.84,0.00020547,2]
[370391968,1751992244074,-460.0,0.00020547,2]
[370391969,1751992244083,-460.0,0.00020547,2]
[370391970,1751992244092,-1648.56,0.00020547,2]
[370391971,1751992244101,-469.4,0.00020547,2]
[370391972,1751992244110,-1886.3,0.00020547,2]
[370391973,1751992244120,-460.0,0.00020547,2]
[370391974,1751992244129,-2050.81,0.00020547,2]
[370391975,1751992244138,-460.0,0.00020547,2]
[370391976,1751992244147,-460.0,0.00020547,2]
[370391977,1751992244155,-460.0,0.00020547,2]
[370391978,1751992244165,-460.0,0.00020547,2]
[370391979,1751992244175,-460.0,0.00020547,2]
[370391980,1751992244184,-460.0,0.00020547,2]
[370391981,1751992244193,-896.86,0.00020547,2]
[370391982,1751992244203,-460.0,0.00020547,2]
[370391983,1751992244212,-391.93179294,0.00020547,2]
[370391984,1751992244221,-829.92,0.00020547,2]
[370391985,1751992244230,-1118.24,0.00020547,2]
[370391986,1751992244240,-510.15,0.00020547,2]
[370391987,1751992244249,-510.04,0.00020547,2]
[370391988,1751992244259,-460.0,0.00020547,2]
[370391989,1751992244268,-460.0,0.00020547,2]
[370391990,1751992244277,-1411.62,0.00020547,2]
[370391991,1751992244286,-460.0,0.00020547,2]
[370391992,1751992244295,-295.33791175,0.00020547,2]
[370391993,1751992244304,-460.0,0.00020547,2]
[370391994,1751992244313,-460.0,0.00020547,2]
[370391995,1751992244322,-460.0,0.00020547,2]
[370391996,1751992244331,-460.0,0.00020547,2]
[370391997,1751992244340,-460.0,0.00020547,2]
[370391998,1751992244349,-460.0,0.00020547,2]
[370391999,1751992244358,-883.03,0.00020547,2]
[370392000,1751992244368,-1000.0,0.00020556,2]
[370392001,1751992244377,-500.0,0.00020556,2]
[370392002,1751992244386,-500.0,0.00020556,2]
[370392003,1751992244395,-160.0,0.00020591,2]
[370392004,1751992244404,-12586.7184932,0.00020591,2]
[370392005,1751992244413,-160.0,0.00020591,2]
[370392006,1751992244424,-215.2437778,0.00020591,2]
[370392007,1751992244434,-848.40570879,0.00020591,2]
[370392008,1751992244443,-214.10276668,0.00020591,2]
[370392009,1751992244453,-160.0,0.00020591,2]
[370392010,1751992244462,-837.89306043,0.00020591,2]
[370392011,1751992244471,-230.51100374,0.00020591,2]
[370392012,1751992244481,-160.0,0.00020594,2]
[370392013,1751992244489,-6000.0,0.00020598,2]
[370392014,1751992244498,-460.0,0.00020603,2]
[370392015,1751992244508,-706.3,0.00020603,2]
[370392016,1751992244517,-460.0,0.00020603,2]
[370392017,1751992244526,-1246.82,0.00020603,2]
[370392018,1751992244535,-460.0,0.00020603,2]
[370392019,1751992244544,-612.3,0.00020603,2]
[370392020,1751992244553,-938.89,0.00020603,2]
[370392021,1751992244563,-485.05,0.00020603,2]
[370392022,1751992244571,-2087.06,0.00020603,2]
[370392023,1751992244580,-460.0,0.00020603,2]
[370392024,1751992244589,-500.0,0.00020633,2]
[370392025,1751992244598,-6000.0,0.00020648,2]
[370392026,1751992244607,-500.0,0.00020725,2]
[370392027,1751992244616,-1870.00093232,0.00020728,3]
[370392028,1751992244625,-975.914,0.0002077,2]
[370392029,1751992244634,-178.09307395,0.0002077,2]
[370392030,1751992244643,-500.0,0.00020817,2]
[370392031,1751992244652,-460.0,0.00020821,2]
[370392032,1751992244662,-460.0,0.00020821,2]
[370392033,1751992244672,-681.56,0.00020821,2]
[370392034,1751992244688,-460.0,0.00020821,2]
[370392035,1751992244697,-460.0,0.00020821,2]
[370392036,1751992244708,-460.0,0.00020821,2]
[370392037,1751992244717,-460.0,0.00020821,2]
[370392038,1751992244727,-407.98705685,0.00020821,2]
[370392039,1751992244736,-1434.78,0.00020821,2]
[370392040,1751992244746,-1457.81,0.00020821,2]
[370392041,1751992244757,-1784.73,0.00020821,2]
[370392042,1751992244768,-460.0,0.00020821,2]
[370392043,1751992244777,-587.43,0.00020821,2]
[370392044,1751992244787,-460.0,0.00020821,2]
[370392045,1751992244796,-460.0,0.00020821,2]
[370392046,1751992244806,-2716.87,0.00020821,2]
[370392047,1751992244817,-549.3,0.00020821,2]
[370392048,1751992244832,-460.0,0.00020821,2]
[370392049,1751992244843,-629.94,0.00020821,2]
[370392050,1751992244854,-461.84,0.00020821,2]
[370392051,1751992244864,-575.10219946,0.00020821,2]
[370392052,1751992244876,-460.0,0.00020821,2]
[370392053,1751992244886,-1648.56,0.00020821,2]
[370392054,1751992244897,-469.4,0.00020821,2]
[370392055,1751992244907,-1886.3,0.00020821,2]
[370392056,1751992244919,-460.0,0.00020821,2]
[370392057,1751992244938,-2050.81,0.00020821,2]
[370392058,1751992244949,-460.0,0.00020821,2]
[370392059,1751992244962,-460.0,0.00020821,2]
[370392060,1751992244972,-460.0,0.00020821,2]
[370392061,1751992244982,-460.0,0.00020821,2]
[370392062,1751992244993,-460.0,0.00020821,2]
[370392063,1751992245003,-896.86,0.00020821,2]
[370392064,1751992245161,-540.0779289,0.00020821,2]
[370392065,1751992245176,-829.92,0.00020821,2]
[370392066,1751992245186,-1118.24,0.00020821,2]
[370392067,1751992245195,-460.0,0.00020821,2]
[370392068,1751992245205,-460.0,0.00020821,2]
[370392069,1751992245214,-1411.62,0.00020821,2]
[370392070,1751992245223,-460.0,0.00020821,2]
[370392071,1751992245232,-460.0,0.00020821,2]
[370392072,1751992245241,-460.0,0.00020821,2]
[370392073,1751992245250,-460.0,0.00020821,2]
[370392074,1751992245259,-460.0,0.00020821,2]
[370392075,1751992245269,-460.0,0.00020821,2]
[370392076,1751992245278,-500.0,0.00020864,2]
[370392077,1751992245287,-460.0,0.00020877,2]
[370392078,1751992245296,-706.3,0.00020877,2]
[370392079,1751992245305,-460.0,0.00020877,2]
[370392080,1751992245314,-1246.82,0.00020877,2]
[370392081,1751992245324,-460.0,0.00020877,2]
[370392082,1751992245333,-612.3,0.00020877,2]
[370392083,1751992245342,-938.89,0.00020877,2]
[370392084,1751992245351,-485.05,0.00020877,2]
[370392085,1751992245361,-2087.06,0.00020877,2]
[370392086,1751992245370,-460.0,0.00020877,2]
[370392087,1751992245379,-420.0,0.00020899,2]
[370392088,1751992245389,-500.0,0.00020909,2]
[370392089,1751992245398,-1870.00093232,0.00020934,4]
[370392090,1751992245407,-2418.02753037,0.00020995,2]
[370392091,1751992245417,-500.0,0.00021001,2]
[370392092,1751992245430,-460.0,0.00021095,2]
[370392093,1751992245439,-460.0,0.00021095,2]
[370392094,1751992245448,-681.56,0.00021095,2]
[370392095,1751992245458,-460.0,0.00021095,2]
[370392096,1751992245467,-460.0,0.00021095,2]
[370392097,1751992245477,-460.0,0.00021095,2]
[370392098,1751992245486,-460.0,0.00021095,2]
[370392099,1751992245496,-1434.78,0.00021095,2]
[370392100,1751992245505,-1457.81,0.00021095,2]
[370392101,1751992245515,-1784.73,0.00021095,2]
[370392102,1751992245524,-460.0,0.00021095,2]
[370392103,1751992245533,-587.43,0.00021095,2]
[370392104,1751992245542,-460.0,0.00021095,2]
[370392105,1751992245551,-460.0,0.00021095,2]
[370392106,1751992245561,-2716.87,0.00021095,2]
[370392107,1751992245570,-549.3,0.00021095,2]
[370392109,1751992245581,-460.0,0.00021095,2]
[370392110,1751992245591,-629.94,0.00021095,2]
[370392111,1751992245600,-461.84,0.00021095,2]
[370392112,1751992245609,-460.0,0.00021095,2]
[370392113,1751992245618,-1648.56,0.00021095,2]
[370392114,1751992245627,-469.4,0.00021095,2]
[370392115,1751992245636,-1886.3,0.00021095,2]
[370392117,1751992245645,-460.0,0.00021095,2]
[370392119,1751992245655,-2050.81,0.00021095,2]
[370392121,1751992245664,-408.91852275,0.00021095,2]
[370392122,1751992245677,-460.0,0.00021095,2]
[370392123,1751992245687,-460.0,0.00021095,2]
[370392125,1751992245696,-460.0,0.00021095,2]
[370392126,1751992245706,-460.0,0.00021095,2]
[370392128,1751992245715,-896.86,0.00021095,2]
[370392130,1751992245724,-829.92,0.00021095,2]
[370392132,1751992245734,-1118.24,0.00021095,2]
[370392134,1751992245743,-460.0,0.00021095,2]
[370392135,1751992245752,-1411.62,0.00021095,2]
[370392136,1751992245762,-460.0,0.00021095,2]
[370392137,1751992245772,-460.0,0.00021095,2]
[370392138,1751992245782,-460.0,0.00021095,2]
[370392139,1751992245791,-460.0,0.00021095,2]
[370392140,1751992245800,-460.0,0.00021095,2]
[370392141,1751992245810,-460.0,0.00021095,2]
[370392142,1751992245819,-1870.00093232,0.00021141,4]
[370392143,1751992245833,-460.0,0.00021151,2]
[370392144,1751992245843,-706.3,0.00021151,2]
[370392145,1751992245853,-460.0,0.00021151,2]
[370392146,1751992245863,-1246.82,0.00021151,2]
[370392147,1751992245873,-460.0,0.00021151,2]
[370392148,1751992245883,-612.3,0.00021151,2]
[370392149,1751992245893,-938.89,0.00021151,2]
[370392150,1751992245904,-485.05,0.00021151,2]
[370392151,1751992245914,-2087.06,0.00021151,2]
[370392152,1751992245927,-460.0,0.00021151,2]
[370392153,1751992245936,-1000.0,0.000213,2]
[370392154,1751992245946,-1000.0,0.000213,2]
[370392155,1751992245955,-1000.0,0.000213,2]
[370392157,1751992245964,-1140.0,0.000213,2]
[370392158,1751992245974,-1870.00093232,0.00021348,5]
[370392159,1751992245984,-460.0,0.00021369,2]
[370392160,1751992245993,-460.0,0.00021369,2]
[370392161,1751992246003,-681.56,0.00021369,2]
[370392162,1751992246014,-223.64501171,0.00021369,2]
[370392164,1751992246028,-460.0,0.00021369,2]
[370392166,1751992246038,-460.0,0.00021369,2]
[370392167,1751992246047,-460.0,0.00021369,2]
[370392168,1751992246057,-460.0,0.00021369,2]
[370392169,1751992246068,-1434.78,0.00021369,2]
[370392170,1751992246077,-1457.81,0.00021369,2]
[370392171,1751992246087,-1784.73,0.00021369,2]
[370392172,1751992246096,-460.0,0.00021369,2]
[370392173,1751992246105,-587.43,0.00021369,2]
[370392174,1751992246115,-460.0,0.00021369,2]
[370392175,1751992246124,-479.90224647,0.00021369,2]
[370392177,1751992246133,-2716.87,0.00021369,2]
[370392179,1751992246143,-549.3,0.00021369,2]
[370392180,1751992246152,-586.47301735,0.00021369,2]
[370392181,1751992246161,-629.94,0.00021369,2]
[370392182,1751992246170,-461.84,0.00021369,2]
[370392183,1751992246181,-460.0,0.00021369,2]
[370392185,1751992246191,-1648.56,0.00021369,2]
[370392186,1751992246200,-469.4,0.00021369,2]
[370392187,1751992246209,-1886.3,0.00021369,2]
[370392188,1751992246219,-460.0,0.00021369,2]
[370392189,1751992246229,-2050.81,0.00021369,2]
[370392190,1751992246239,-460.0,0.00021369,2]
[370392192,1751992246248,-460.0,0.00021369,2]
[370392193,1751992246257,-460.0,0.00021369,2]
[370392194,1751992246267,-460.0,0.00021369,2]
[370392195,1751992246276,-896.86,0.00021369,2]
[370392196,1751992246287,-829.92,0.00021369,2]
[370392197,1751992246297,-1118.24,0.00021369,2]
[370392198,1751992246306,-460.0,0.00021369,2]
[370392199,1751992246315,-1411.62,0.00021369,2]
[370392200,1751992246325,-460.0,0.00021369,2]
[370392201,1751992246334,-460.0,0.00021369,2]
[370392202,1751992246344,-460.0,0.00021369,2]
[370392203,1751992246353,-157.98376624,0.00021369,2]
[370392204,1751992246362,-460.0,0.00021369,2]
[370392205,1751992246372,-460.0,0.00021369,2]
[370392206,1751992246382,-502.28694814,0.00021383,2]
[370392207,1751992246393,-500.0,0.00021383,2]
[370392208,1751992246403,-500.0,0.00021383,2]
[370392209,1751992246413,-706.3,0.00021425,2]
[370392210,1751992246422,-460.0,0.00021425,2]
[370392211,1751992246432,-1246.82,0.00021425,2]
[370392212,1751992246442,-460.0,0.00021425,2]
[370392213,1751992246451,-612.3,0.00021425,2]
[370392214,1751992246460,-938.89,0.00021425,2]
[370392215,1751992246469,-485.05,0.00021425,2]
[370392216,1751992246479,-2087.06,0.00021425,2]
[370392217,1751992246489,-460.0,0.00021425,2]
[370392218,1751992246498,-18543.74350915,0.0002148,2]
[370392219,1751992246507,-2153.0,0.00021496,2]
[370392220,1751992246516,-646.0,0.00021496,2]
[370392221,1751992246526,-407.0,0.00021496,2]
[370392222,1751992246535,-967.0,0.00021496,2]
[370392223,1751992246545,-151.0,0.000215,4]
[370392224,1751992246554,-485.3583714,0.00021507,2]
[370392225,1751992246563,-2418.02753037,0.00021543,2]
[370392226,1751992246573,-1870.00093232,0.00021555,5]
[370392227,1751992246582,-276.79222931,0.00021585,2]
[370392228,1751992246591,-460.0,0.00021643,2]
[370392229,1751992246600,-460.0,0.00021643,2]
[370392230,1751992246610,-681.56,0.00021643,2]
[370392231,1751992246620,-460.0,0.00021643,2]
[370392232,1751992246630,-460.0,0.00021643,2]
[370392233,1751992246640,-339.7448023,0.00021643,2]
[370392234,1751992246650,-460.0,0.00021643,2]
[370392235,1751992246660,-1434.78,0.00021643,2]
[370392236,1751992246670,-1457.81,0.00021643,2]
[370392237,1751992246679,-1784.73,0.00021643,2]
[370392238,1751992246689,-460.0,0.00021643,2]
[370392239,1751992246699,-587.43,0.00021643,2]
[370392240,1751992246709,-460.0,0.00021643,2]
[370392241,1751992246719,-2716.87,0.00021643,2]
[370392242,1751992246729,-629.94,0.00021643,2]
[370392243,1751992246739,-461.84,0.00021643,2]
[370392244,1751992246750,-549.3,0.00021643,2]
[370392245,1751992246760,-460.0,0.00021643,2]
[370392246,1751992246770,-1648.56,0.00021643,2]
[370392247,1751992246779,-469.4,0.00021643,2]
[370392248,1751992246789,-1886.3,0.00021643,2]
[370392249,1751992246799,-460.0,0.00021643,2]
[370392250,1751992246809,-2050.81,0.00021643,2]
[370392251,1751992246819,-460.0,0.00021643,2]
[370392252,1751992246832,-460.0,0.00021643,2]
[370392253,1751992246841,-212.62912703,0.00021643,2]
[370392254,1751992246851,-460.0,0.00021643,2]
[370392255,1751992246860,-896.86,0.00021643,2]
[370392256,1751992246870,-829.92,0.00021643,2]
[370392257,1751992246879,-1118.24,0.00021643,2]
[370392258,1751992246889,-460.0,0.00021643,2]
[370392259,1751992246898,-1411.62,0.00021643,2]
[370392260,1751992246907,-460.0,0.00021643,2]
[370392261,1751992246917,-460.0,0.00021643,2]
[370392262,1751992246928,-460.0,0.00021643,2]
[370392263,1751992246938,-460.0,0.00021643,2]
[370392264,1751992246947,-460.0,0.00021643,2]
[370392265,1751992246956,-207.4,0.00021677,2]
[370392266,1751992246966,-690.642,0.00021677,2]
[370392267,1751992246976,-706.3,0.00021699,2]
[370392268,1751992246987,-460.0,0.00021699,2]
[370392269,1751992246996,-1246.82,0.00021699,2]
[370392270,1751992247007,-460.0,0.00021699,2]
[370392271,1751992247016,-612.3,0.00021699,2]
[370392272,1751992247026,-938.89,0.00021699,2]
[370392273,1751992247035,-485.05,0.00021699,2]
[370392274,1751992247044,-2087.06,0.00021699,2]
[370392275,1751992247054,-460.0,0.00021699,2]
[370392276,1751992247063,-716.195754,0.00021732,2]
[370392277,1751992247072,-1870.00093232,0.00021762,5]
[370392278,1751992247081,-742.6949969,0.00021787,2]
[370392279,1751992247091,-770.17471178,0.00021842,2]
[370392280,1751992247100,-798.67117612,0.00021897,2]
[370392281,1751992247109,-151.0,0.000219,3]
[370392282,1751992247119,-500.0,0.00021917,2]
[370392283,1751992247128,-500.0,0.00021917,2]
[370392284,1751992247137,-460.0,0.00021917,2]
[370392285,1751992247148,-1153.73297304,0.00021917,2]
[370392286,1751992247158,-460.0,0.00021917,2]
[370392287,1751992247168,-460.0,0.00021917,2]
[370392288,1751992247179,-681.56,0.00021917,2]
[370392289,1751992247189,-460.0,0.00021917,2]
[370392290,1751992247199,-460.0,0.00021917,2]
[370392291,1751992247211,-460.0,0.00021917,2]
[370392292,1751992247221,-1434.78,0.00021917,2]
[370392293,1751992247230,-1457.81,0.00021917,2]
[370392294,1751992247240,-1784.73,0.00021917,2]
[370392295,1751992247250,-460.0,0.00021917,2]
[370392296,1751992247260,-587.43,0.00021917,2]
[370392297,1751992247270,-433.20788172,0.00021917,2]
[370392298,1751992247281,-2716.87,0.00021917,2]
[370392299,1751992247291,-629.94,0.00021917,2]
[370392300,1751992247301,-461.84,0.00021917,2]
[370392301,1751992247310,-549.3,0.00021917,2]
[370392302,1751992247319,-460.0,0.00021917,2]
[370392303,1751992247328,-1648.56,0.00021917,2]
[370392304,1751992247337,-469.4,0.00021917,2]
[370392305,1751992247347,-1886.3,0.00021917,2]
[370392306,1751992247356,-460.0,0.00021917,2]
[370392307,1751992247365,-2050.81,0.00021917,2]
[370392308,1751992247374,-302.69491276,0.00021917,2]
[370392309,1751992247383,-460.0,0.00021917,2]
[370392310,1751992247392,-460.0,0.00021917,2]
[370392311,1751992247402,-896.86,0.00021917,2]
[370392312,1751992247411,-829.92,0.00021917,2]
[370392313,1751992247420,-1118.24,0.00021917,2]
[370392314,1751992247431,-460.0,0.00021917,2]
[370392315,1751992247440,-1411.62,0.00021917,2]
[370392316,1751992247449,-460.0,0.00021917,2]
[370392317,1751992247458,-460.0,0.00021917,2]
[370392318,1751992247468,-460.0,0.00021917,2]
[370392319,1751992247477,-460.0,0.00021917,2]
[370392320,1751992247486,-460.0,0.00021917,2]
[370392321,1751992247495,-178.92493938,0.00021918,2]
[370392322,1751992247504,-200.0,0.00021918,2]
[370392323,1751992247514,-500.0,0.00021918,2]
[370392324,1751992247523,-500.0,0.00021918,2]
[370392325,1751992247532,-500.0,0.00021918,2]
[370392326,1751992247542,-500.0,0.00021918,2]
[370392327,1751992247551,-500.0,0.00021918,2]
[370392328,1751992247560,-500.0,0.00021918,2]
[370392329,1751992247570,-500.0,0.00021918,2]
[370392330,1751992247579,-500.0,0.00021918,2]
[370392331,1751992247588,-500.0,0.00021918,2]
[370392332,1751992247597,-1000.0,0.00021931,2]
[370392333,1751992247607,-1000.0,0.00021931,2]
[370392334,1751992247617,-904.74130423,0.00021952,2]
[370392335,1751992247626,-1714.46442003,0.00021969,6]
[370392336,1751992247739,-155.53651229,0.00021969,6]
[370392337,1751992247749,-153.0,0.00021973,2]
[370392338,1751992247759,-153.0,0.00021973,2]
[370392339,1751992247768,-153.0,0.00021973,2]
[370392340,1751992247778,-153.0,0.00021973,2]
[370392341,1751992247787,-153.0,0.00021973,2]
[370392342,1751992247797,-153.0,0.00021973,2]
[370392343,1751992247806,-153.0,0.00021973,2]
[370392344,1751992247816,-153.0,0.00021973,2]
[370392345,1751992247830,-153.0,0.00021973,2]
[370392346,1751992247839,-153.0,0.00021973,2]
[370392347,1751992247849,-153.0,0.00021973,2]
[370392348,1751992247859,-153.0,0.00021973,2]
[370392349,1751992247870,-706.3,0.00021973,2]
[370392350,1751992247879,-460.0,0.00021973,2]
[370392351,1751992247889,-1246.82,0.00021973,2]
[370392352,1751992247900,-601.34255042,0.00021973,2]
[370392353,1751992247909,-612.3,0.00021973,2]
[370392354,1751992247918,-938.89,0.00021973,2]
[370392355,1751992247936,-485.05,0.00021973,2]
[370392356,1751992247945,-2087.06,0.00021973,2]
[370392357,1751992247956,-460.0,0.00021973,2]
[370392358,1751992247966,-150.0,0.00022,2]
[370392359,1751992247975,-214.0,0.00022,2]
[370392360,1751992247985,-500.87762735,0.00022133,2]
[370392361,1751992247994,-6549.44905459,0.00022173,2]
[370392362,1751992248028,-883.03,0.00020821,2]
[370392363,1751992248038,-3545.02457308,0.00022173,2]
[370392364,1751992248047,-1870.00093232,0.00022176,6]
[370392365,1751992248056,-399.68494151,0.00022191,2]
[370392366,1751992248066,-460.0,0.00022191,2]
[370392367,1751992248075,-460.0,0.00022191,2]
[370392368,1751992248084,-460.0,0.00022191,2]
[370392369,1751992248094,-681.56,0.00022191,2]
[370392370,1751992248103,-460.0,0.00022191,2]
[370392371,1751992248113,-460.0,0.00022191,2]
[370392372,1751992248122,-460.0,0.00022191,2]
[370392373,1751992248132,-1434.78,0.00022191,2]
[370392374,1751992248142,-1457.81,0.00022191,2]
[370392375,1751992248151,-1784.73,0.00022191,2]
[370392376,1751992248161,-460.0,0.00022191,2]
[370392377,1751992248174,-587.43,0.00022191,2]
[370392378,1751992248184,-2716.87,0.00022191,2]
[370392379,1751992248194,-629.94,0.00022191,2]
[370392380,1751992248204,-461.84,0.00022191,2]
[370392381,1751992248213,-549.3,0.00022191,2]
[370392382,1751992248223,-460.0,0.00022191,2]
[370392383,1751992248232,-1005.99555309,0.00022191,2]
[370392384,1751992248390,-487.78638479,0.00022191,2]
[370392385,1751992249062,-500.0,0.00019177,2]
[370392386,1751992249072,-500.0,0.00019177,2]
[370392387,1751992249082,-552.81356858,0.00019177,2]
[370392388,1751992249092,-500.0,0.00019177,2]
[370392389,1751992249101,-182.00099078,0.00019177,2]
[370392390,1751992249111,-500.0,0.00019177,2]
[370392391,1751992249121,-460.0,0.00019178,2]
[370392392,1751992249130,-460.0,0.00019452,2]
[370392393,1751992249140,-313.04376125,0.00019726,2]
[370392394,1751992249151,-500.0,0.00019989,2]
[370392395,1751992249160,-500.0,0.00019989,2]
[370392396,1751992249170,-500.0,0.00019989,2]
[370392397,1751992249181,-460.0,0.0002,2]
[370392398,1751992249191,-862.67,0.00020055,2]
[370392399,1751992249200,-460.0,0.00020273,2]
[370392400,1751992249210,-862.67,0.00020329,2]
[370392401,1751992249219,-236.11140957,0.00020547,2]
[370392402,1751992249228,-862.67,0.00020603,2]
[370392403,1751992249238,-862.67,0.00020877,2]
[370392404,1751992249247,-4754.69,0.00021085,10]
[370392405,1751992249256,-460.0,0.00021095,2]
[370392406,1751992249265,-883.03,0.00021095,2]
[370392407,1751992249274,-862.67,0.00021151,2]
[370392408,1751992249283,-460.0,0.00021369,2]
[370392409,1751992249292,-883.03,0.00021369,2]
[370392410,1751992249301,-862.67,0.00021425,2]
[370392411,1751992249310,-460.0,0.00021643,2]
[370392412,1751992249320,-883.03,0.00021643,2]
[370392413,1751992249329,-862.67,0.00021699,2]
[370392414,1751992249338,-460.0,0.00021917,2]
[370392415,1751992249347,-883.03,0.00021917,2]
[370392416,1751992249356,-500.0,0.00021918,2]
[370392417,1751992249365,-500.0,0.00021918,2]
[370392418,1751992249374,-500.0,0.00021918,2]
[370392419,1751992249384,-500.0,0.00021918,2]
[370392420,1751992249393,-500.0,0.00021918,2]
[370392421,1751992249402,-500.0,0.00021918,2]
[370392422,1751992249412,-862.67,0.00021973,2]
[370392423,1751992249421,-154.77806212,0.00022191,2]
[370392424,1751992249431,-469.4,0.00022191,2]
[370392425,1751992249441,-1886.3,0.00022191,2]
[370392426,1751992249450,-460.0,0.00022191,2]
[370392427,1751992249460,-2050.81,0.00022191,2]
[370392428,1751992249469,-460.0,0.00022191,2]
[370392429,1751992249479,-412.13127876,0.00022191,2]
[370392430,1751992249488,-896.86,0.00022191,2]
[370392431,1751992249498,-829.92,0.00022191,2]
[370392432,1751992249508,-1118.24,0.00022191,2]
[370392433,1751992249517,-460.0,0.00022191,2]
[370392434,1751992249526,-1411.62,0.00022191,2]
[370392435,1751992249536,-460.0,0.00022191,2]
[370392436,1751992249545,-460.0,0.00022191,2]
[370392437,1751992249555,-460.0,0.00022191,2]
[370392438,1751992249564,-460.0,0.00022191,2]
[370392439,1751992249573,-323.06500408,0.00022191,2]
[370392440,1751992249582,-460.0,0.00022191,2]
[370392441,1751992249592,-883.03,0.00022191,2]
[370392442,1751992249601,-214.0,0.00022192,7]
[370392443,1751992249610,-318.0,0.00022206,3]
[370392444,1751992249620,-318.0,0.00022206,3]
[370392445,1751992249629,-500.0,0.00022241,2]
[370392446,1751992249638,-500.77879044,0.00022241,2]
[370392447,1751992249648,-500.0,0.00022241,2]
[370392448,1751992249658,-587.87715135,0.00022241,2]
[370392449,1751992249667,-500.0,0.00022241,2]
[370392450,1751992249680,-500.97108494,0.00022241,2]
[370392451,1751992249689,-500.0,0.00022241,2]
[370392452,1751992249699,-501.13632603,0.00022241,2]
[370392453,1751992249708,-500.0,0.00022241,2]
[370392454,1751992249718,-500.43763594,0.00022241,2]
[370392455,1751992249727,-325.34473539,0.00022241,2]
[370392456,1751992249736,-600.0,0.00022241,2]
[370392457,1751992249746,-500.0,0.00022241,2]
[370392458,1751992249755,-500.0,0.00022241,2]
[370392459,1751992249765,-500.0,0.00022241,2]
[370392460,1751992249774,-537.97098516,0.00022241,2]
[370392461,1751992249784,-500.5213385,0.00022243,2]
[370392462,1751992249793,-460.0,0.00022247,2]
[370392463,1751992249802,-1246.82,0.00022247,2]
[370392464,1751992249812,-612.3,0.00022247,2]
[370392465,1751992249829,-938.89,0.00022247,2]
[370392466,1751992249843,-485.05,0.00022247,2]
[370392467,1751992249857,-2087.06,0.00022247,2]
[370392468,1751992249870,-460.0,0.00022247,2]
[370392469,1751992249882,-862.67,0.00022247,2]
[370392470,1751992249892,-1870.00093232,0.00022383,7]